[Event "*** Titled Tuesday Blitz"]
[Site "Chess.com"]
[Date "2020.12.29"]
[Round "1"]
[White "albi1999"]
[Black "BelaKis"]
[Result "1-0"]
[WhiteElo "2512"]
[BlackElo "2137"]
[TimeControl "180+1"]
[EndTime "10:07:29 PST"]
[Termination "albi1999 won on time"]

1. d4 {[%clk 0:02:54.2]} 1... Nf6 {[%clk 0:02:59.3]} 2. Bg5 {[%clk 0:02:52.6]}
2... Ne4 {[%clk 0:02:58.1]} 3. Bf4 {[%clk 0:02:48.9]} 3... g6 {[%clk 0:02:58.1]}
4. Nd2 {[%clk 0:02:47]} 4... Nf6 {[%clk 0:02:56.8]} 5. h3 {[%clk 0:02:45.5]}
5... Bg7 {[%clk 0:02:53]} 6. e4 {[%clk 0:02:44.7]} 6... d6 {[%clk 0:02:53.2]} 7.
Ngf3 {[%clk 0:02:42.7]} 7... O-O {[%clk 0:02:52.8]} 8. c3 {[%clk 0:02:43.2]}
8... Nc6 {[%clk 0:02:11]} 9. Bc4 {[%clk 0:02:39.6]} 9... Nh5 {[%clk 0:01:53.3]}
10. Be3 {[%clk 0:02:31.6]} 10... e5 {[%clk 0:01:51.3]} 11. O-O {[%clk
0:02:31.6]} 11... h6 {[%clk 0:01:44.4]} 12. Re1 {[%clk 0:02:26]} 12... Qf6
{[%clk 0:01:38.4]} 13. Bf1 {[%clk 0:02:19.1]} 13... Nf4 {[%clk 0:01:31.9]} 14.
Kh2 {[%clk 0:02:19.2]} 14... g5 {[%clk 0:01:28.2]} 15. g3 {[%clk 0:02:17.4]}
15... Ng6 {[%clk 0:01:28.5]} 16. d5 {[%clk 0:02:07.2]} 16... Nce7 {[%clk
0:01:25.8]} 17. Ng1 {[%clk 0:02:07.6]} 17... Kh7 {[%clk 0:01:17.8]} 18. Be2
{[%clk 0:02:05.5]} 18... Rh8 {[%clk 0:01:12]} 19. Nf1 {[%clk 0:01:56.8]} 19...
Ng8 {[%clk 0:01:11.8]} 20. Bg4 {[%clk 0:01:55.5]} 20... Qd8 {[%clk 0:01:05.6]}
21. Bf5 {[%clk 0:01:54.3]} 21... Bf6 {[%clk 0:00:58.2]} 22. c4 {[%clk
0:01:49.4]} 22... Be7 {[%clk 0:00:49.3]} 23. Bd2 {[%clk 0:01:40.4]} 23... Kg7
{[%clk 0:00:48.9]} 24. Ne3 {[%clk 0:01:39.2]} 24... h5 {[%clk 0:00:49.1]} 25.
Bxc8 {[%clk 0:01:38]} 25... Rxc8 {[%clk 0:00:44.5]} 26. Nf5+ {[%clk 0:01:38.1]}
26... Kf8 {[%clk 0:00:42.9]} 27. Qc1 {[%clk 0:01:34.6]} 27... f6 {[%clk
0:00:38.8]} 28. h4 {[%clk 0:01:31.3]} 28... gxh4 {[%clk 0:00:28.8]} 29. gxh4
{[%clk 0:01:30.2]} 29... Kf7 {[%clk 0:00:28.4]} 30. Nh3 {[%clk 0:01:27.6]} 30...
Bf8 {[%clk 0:00:28.1]} 31. f4 {[%clk 0:01:18]} 31... N8e7 {[%clk 0:00:25.4]} 32.
fxe5 {[%clk 0:01:18.4]} 32... dxe5 {[%clk 0:00:21.1]} 33. Qc2 {[%clk 0:00:54.8]}
33... Nxf5 {[%clk 0:00:19.2]} 34. exf5 {[%clk 0:00:55.7]} 34... Nxh4 {[%clk
0:00:19.5]} 35. Qe4 {[%clk 0:00:55.5]} 35... c6 {[%clk 0:00:16.6]} 36. Qxh4
{[%clk 0:00:52.6]} 36... cxd5 {[%clk 0:00:16.9]} 37. Qg3 {[%clk 0:00:42.5]}
37... Rg8 {[%clk 0:00:13.5]} 38. Qf3 {[%clk 0:00:43]} 38... Rxc4 {[%clk
0:00:11.4]} 39. Qxh5+ {[%clk 0:00:42.1]} 39... Ke7 {[%clk 0:00:10.8]} 40. Rac1
{[%clk 0:00:39.1]} 40... Qc7 {[%clk 0:00:09.7]} 41. Bb4+ {[%clk 0:00:37.1]}
41... Kd8 {[%clk 0:00:08.7]} 42. Bxf8 {[%clk 0:00:30.9]} 42... Rxf8 {[%clk
0:00:08.3]} 43. Qh6 {[%clk 0:00:27.7]} 43... Rg8 {[%clk 0:00:07.7]} 44. Qxf6+
{[%clk 0:00:27]} 44... Kc8 {[%clk 0:00:08.2]} 45. Qe6+ {[%clk 0:00:27.5]} 45...
Kb8 {[%clk 0:00:08.1]} 46. Qxg8+ {[%clk 0:00:27.6]} 1-0

[Event "*** Titled Tuesday Blitz"]
[Site "Chess.com"]
[Date "2020.12.29"]
[Round "1"]
[White "Forantes"]
[Black "Frolyanov_D"]
[Result "0-1"]
[WhiteElo "2366"]
[BlackElo "2704"]
[TimeControl "180+1"]
[EndTime "10:07:30 PST"]
[Termination "Frolyanov_D won by checkmate"]

1. Nf3 {[%clk 0:02:58]} 1... d5 {[%clk 0:02:58.9]} 2. g3 {[%clk 0:02:55.9]} 2...
c6 {[%clk 0:02:58.3]} 3. Bg2 {[%clk 0:02:55.7]} 3... Bg4 {[%clk 0:02:58]} 4. d4
{[%clk 0:02:55.6]} 4... Nf6 {[%clk 0:02:56.7]} 5. O-O {[%clk 0:02:55.9]} 5...
Nbd7 {[%clk 0:02:54.5]} 6. c4 {[%clk 0:02:55.3]} 6... e6 {[%clk 0:02:54.1]} 7.
Nc3 {[%clk 0:02:54.7]} 7... Bd6 {[%clk 0:02:53.1]} 8. Qb3 {[%clk 0:02:52.3]}
8... Rb8 {[%clk 0:02:48.1]} 9. c5 {[%clk 0:02:27.7]} 9... Bc7 {[%clk 0:02:46.1]}
10. Bf4 {[%clk 0:02:28.1]} 10... O-O {[%clk 0:02:42.4]} 11. Rfe1 {[%clk
0:02:23]} 11... b6 {[%clk 0:02:38.3]} 12. Bxc7 {[%clk 0:02:19]} 12... Qxc7
{[%clk 0:02:37.5]} 13. cxb6 {[%clk 0:02:19.4]} 13... Rxb6 {[%clk 0:02:27.8]} 14.
Qa3 {[%clk 0:02:03.6]} 14... Rfb8 {[%clk 0:02:22.8]} 15. b3 {[%clk 0:01:34.1]}
15... c5 {[%clk 0:02:20.9]} 16. dxc5 {[%clk 0:01:31.7]} 16... Nxc5 {[%clk
0:02:14.4]} 17. Rac1 {[%clk 0:01:29.3]} 17... Ra6 {[%clk 0:01:53.5]} 18. Na4
{[%clk 0:00:58.4]} 18... Nfe4 {[%clk 0:01:52.6]} 19. Rxc5 {[%clk 0:00:34.8]}
19... Nxc5 {[%clk 0:01:46.1]} 20. Rc1 {[%clk 0:00:35]} 20... Rxa4 {[%clk
0:01:24.3]} 21. bxa4 {[%clk 0:00:33.9]} 21... Bxf3 {[%clk 0:00:59.4]} 22. Bxf3
{[%clk 0:00:33.6]} 22... Rc8 {[%clk 0:00:56.8]} 23. e4 {[%clk 0:00:30.4]} 23...
d4 {[%clk 0:00:54.2]} 24. Rc4 {[%clk 0:00:29]} 24... d3 {[%clk 0:00:51.2]} 25.
e5 {[%clk 0:00:20.3]} 25... Qxe5 {[%clk 0:00:48.2]} 26. Qxd3 {[%clk 0:00:20.3]}
26... Qe1+ {[%clk 0:00:43.7]} 27. Kg2 {[%clk 0:00:20.3]} 27... Qxf2+ {[%clk
0:00:43.8]} 28. Kh3 {[%clk 0:00:17.2]} 28... h5 {[%clk 0:00:35]} 29. Qc3 {[%clk
0:00:11.3]} 29... Qf1+ {[%clk 0:00:32]} 30. Kh4 {[%clk 0:00:11.6]} 30... Qg1
{[%clk 0:00:29]} 31. Bxh5 {[%clk 0:00:09]} 31... Qxh2+ {[%clk 0:00:26]} 32. Kg4
{[%clk 0:00:05.5]} 32... f5+ {[%clk 0:00:24.3]} 33. Kf4 {[%clk 0:00:02.8]} 33...
Qxh5 {[%clk 0:00:18.7]} 34. Rxc5 {[%clk 0:00:03]} 34... Qg4+ {[%clk 0:00:16.4]}
35. Ke5 {[%clk 0:00:03.5]} 35... Qe4+ {[%clk 0:00:15.5]} 36. Kd6 {[%clk
0:00:04]} 36... Rd8+ {[%clk 0:00:10.8]} 37. Ke7 {[%clk 0:00:04.4]} 37... Qa8
{[%clk 0:00:10.6]} 38. Rc7 {[%clk 0:00:03.6]} 38... Re8+ {[%clk 0:00:09.4]} 39.
Kd6 {[%clk 0:00:04.3]} 39... Qd8+ {[%clk 0:00:08.8]} 40. Kc6 {[%clk 0:00:04.8]}
40... Qd5# {[%clk 0:00:07.7]} 0-1

[Event "*** Titled Tuesday Blitz"]
[Site "Chess.com"]
[Date "2020.12.29"]
[Round "1"]
[White "Sergienko_Sergey"]
[Black "JustKid"]
[Result "0-1"]
[WhiteElo "2313"]
[BlackElo "2608"]
[TimeControl "180+1"]
[EndTime "10:07:30 PST"]
[Termination "JustKid won by resignation"]

1. e4 {[%clk 0:02:56.4]} 1... d5 {[%clk 0:03:00.5]} 2. Nc3 {[%clk 0:02:54.7]}
2... dxe4 {[%clk 0:03:00.3]} 3. Nxe4 {[%clk 0:02:54.2]} 3... Bf5 {[%clk
0:02:59.1]} 4. Ng3 {[%clk 0:02:53.6]} 4... Bg6 {[%clk 0:02:59.2]} 5. h4 {[%clk
0:02:51.5]} 5... h6 {[%clk 0:02:59.2]} 6. d4 {[%clk 0:02:44.8]} 6... e6 {[%clk
0:02:59.1]} 7. N1e2 {[%clk 0:02:39.7]} 7... Nf6 {[%clk 0:02:58]} 8. Nf4 {[%clk
0:02:38.8]} 8... Bh7 {[%clk 0:02:58.5]} 9. Bc4 {[%clk 0:02:33.4]} 9... c6 {[%clk
0:02:58.6]} 10. c3 {[%clk 0:02:29.8]} 10... Nbd7 {[%clk 0:02:58.8]} 11. O-O
{[%clk 0:02:23.8]} 11... Bd6 {[%clk 0:02:46.9]} 12. Re1 {[%clk 0:02:13.1]} 12...
Bxf4 {[%clk 0:02:14.7]} 13. Bxf4 {[%clk 0:02:11.7]} 13... O-O {[%clk 0:02:15.6]}
14. h5 {[%clk 0:01:53.3]} 14... Re8 {[%clk 0:02:13.9]} 15. Qf3 {[%clk
0:01:48.6]} 15... Qa5 {[%clk 0:02:10.3]} 16. b4 {[%clk 0:01:37.2]} 16... Qd8
{[%clk 0:02:00.5]} 17. Rad1 {[%clk 0:01:34.6]} 17... Nb6 {[%clk 0:02:00.2]} 18.
Bb3 {[%clk 0:01:32.2]} 18... a6 {[%clk 0:01:59.8]} 19. Be5 {[%clk 0:01:23]}
19... Nbd5 {[%clk 0:01:52.7]} 20. a3 {[%clk 0:01:14.4]} 20... Nd7 {[%clk
0:01:31.2]} 21. c4 {[%clk 0:01:11]} 21... N5f6 {[%clk 0:01:20.3]} 22. Bd6 {[%clk
0:01:07.6]} 22... Nb6 {[%clk 0:01:12.4]} 23. c5 {[%clk 0:01:05.2]} 23... Nbd5
{[%clk 0:01:11.5]} 24. Bc4 {[%clk 0:01:00]} 24... b5 {[%clk 0:01:02.1]} 25. Bd3
{[%clk 0:00:59.2]} 25... Bxd3 {[%clk 0:01:00.5]} 26. Rxd3 {[%clk 0:00:58.4]}
26... a5 {[%clk 0:00:59.8]} 27. Rb3 {[%clk 0:00:36.4]} 27... axb4 {[%clk
0:00:58.1]} 28. axb4 {[%clk 0:00:36.4]} 28... Ra4 {[%clk 0:00:57.3]} 29. Reb1
{[%clk 0:00:35]} 29... Qd7 {[%clk 0:00:56]} 30. Ne4 {[%clk 0:00:32.6]} 30...
Nxe4 {[%clk 0:00:52.9]} 31. Qxe4 {[%clk 0:00:31.9]} 31... Rea8 {[%clk
0:00:53.5]} 32. g4 {[%clk 0:00:26.8]} 32... Qd8 {[%clk 0:00:52.5]} 33. Bg3
{[%clk 0:00:24.7]} 33... Qg5 {[%clk 0:00:42.9]} 34. Qe5 {[%clk 0:00:24]} 34...
Qxg4 {[%clk 0:00:39.6]} 35. Kg2 {[%clk 0:00:22]} 35... Ra2 {[%clk 0:00:37.2]}
36. Rf3 {[%clk 0:00:21.1]} 36... R8a3 {[%clk 0:00:27.6]} 37. Rxa3 {[%clk
0:00:18.4]} 37... Rxa3 {[%clk 0:00:28.5]} 38. Re1 {[%clk 0:00:18.6]} 38... Qf3+
{[%clk 0:00:23.7]} 39. Kh2 {[%clk 0:00:18.7]} 39... Ra2 {[%clk 0:00:22.4]} 40.
Kg1 {[%clk 0:00:17.1]} 40... Nxb4 {[%clk 0:00:18.1]} 41. Qb8+ {[%clk 0:00:11.2]}
41... Kh7 {[%clk 0:00:18]} 42. Qe5 {[%clk 0:00:10.7]} 42... Nd5 {[%clk
0:00:17.1]} 43. Qd6 {[%clk 0:00:10.4]} 43... Nf6 {[%clk 0:00:16.7]} 44. Qe5
{[%clk 0:00:10.1]} 44... Nxh5 {[%clk 0:00:14.7]} 45. Qe4+ {[%clk 0:00:08.5]}
45... Qxe4 {[%clk 0:00:14.4]} 46. Rxe4 {[%clk 0:00:08.5]} 46... Nxg3 {[%clk
0:00:15]} 0-1

[Event "*** Titled Tuesday Blitz"]
[Site "Chess.com"]
[Date "2020.12.29"]
[Round "1"]
[White "SARGISMV"]
[Black "JRenatoMaranhao"]
[Result "1-0"]
[WhiteElo "2480"]
[BlackElo "1896"]
[TimeControl "180+1"]
[EndTime "10:07:30 PST"]
[Termination "SARGISMV won on time"]

1. c4 {[%clk 0:02:59.3]} 1... c6 {[%clk 0:03:00.9]} 2. Nf3 {[%clk 0:02:58.4]}
2... d5 {[%clk 0:03:01.4]} 3. e3 {[%clk 0:02:58.7]} 3... g6 {[%clk 0:03:01]} 4.
d4 {[%clk 0:02:56.5]} 4... Bg7 {[%clk 0:03:00.6]} 5. Nc3 {[%clk 0:02:56.3]} 5...
Nf6 {[%clk 0:03:00.1]} 6. Be2 {[%clk 0:02:56.4]} 6... O-O {[%clk 0:02:59.7]} 7.
O-O {[%clk 0:02:56.9]} 7... Nbd7 {[%clk 0:02:51.6]} 8. cxd5 {[%clk 0:02:55.2]}
8... cxd5 {[%clk 0:02:49.9]} 9. Qb3 {[%clk 0:02:44.2]} 9... Nb6 {[%clk 0:02:35]}
10. a4 {[%clk 0:02:39]} 10... a5 {[%clk 0:02:34.3]} 11. Bd2 {[%clk 0:02:37]}
11... Bg4 {[%clk 0:02:29.7]} 12. Rfc1 {[%clk 0:02:33.6]} 12... e6 {[%clk
0:02:28.2]} 13. h3 {[%clk 0:02:21.9]} 13... Bxf3 {[%clk 0:02:27.1]} 14. Bxf3
{[%clk 0:02:22.8]} 14... Nc4 {[%clk 0:02:27.5]} 15. Be1 {[%clk 0:02:22.6]} 15...
Qb6 {[%clk 0:02:13.5]} 16. Qxb6 {[%clk 0:02:15.3]} 16... Nxb6 {[%clk 0:02:14.4]}
17. Nb5 {[%clk 0:02:15.7]} 17... Rfc8 {[%clk 0:01:54.2]} 18. Rxc8+ {[%clk
0:02:09.5]} 18... Nxc8 {[%clk 0:01:52.7]} 19. Rc1 {[%clk 0:02:09.1]} 19... Nb6
{[%clk 0:01:47.8]} 20. Rc7 {[%clk 0:02:06.6]} 20... Nxa4 {[%clk 0:01:44.5]} 21.
b3 {[%clk 0:02:04.2]} 21... Nb6 {[%clk 0:01:09.4]} 22. Rxb7 {[%clk 0:02:03.4]}
22... Nfd7 {[%clk 0:01:06.6]} 23. Nc7 {[%clk 0:01:54]} 23... Rc8 {[%clk
0:00:22.7]} 24. Bxa5 {[%clk 0:01:50.2]} 24... Bf8 {[%clk 0:00:22.1]} 25. Nxe6
{[%clk 0:01:32.5]} 25... Bd6 {[%clk 0:00:17.1]} 26. g3 {[%clk 0:01:26]} 26...
fxe6 {[%clk 0:00:14.8]} 27. Bxb6 {[%clk 0:01:25.1]} 27... Rc1+ {[%clk
0:00:14.2]} 28. Kg2 {[%clk 0:01:24.3]} 28... Nf6 {[%clk 0:00:14]} 29. Bd8 {[%clk
0:01:10.5]} 29... Ne4 {[%clk 0:00:07.4]} 30. Rb6 {[%clk 0:01:05.2]} 30... Bf8
{[%clk 0:00:04.1]} 31. Bxe4 {[%clk 0:01:03.8]} 31... dxe4 {[%clk 0:00:05]} 32.
Rxe6 {[%clk 0:01:03.7]} 32... Rb1 {[%clk 0:00:05.9]} 33. Rxe4 {[%clk 0:00:59.8]}
33... Rxb3 {[%clk 0:00:06.1]} 34. Bg5 {[%clk 0:00:56.9]} 34... Kf7 {[%clk
0:00:06.2]} 35. Re5 {[%clk 0:00:55]} 35... Rb2 {[%clk 0:00:05.9]} 36. Ra5 {[%clk
0:00:47.2]} 36... Rd2 {[%clk 0:00:05.5]} 37. Ra7+ {[%clk 0:00:45.9]} 37... Kg8
{[%clk 0:00:02.5]} 38. Kf3 {[%clk 0:00:38.6]} 38... Rd3 {[%clk 0:00:01.7]} 39.
Ke4 {[%clk 0:00:36.9]} 39... Rd2 {[%clk 0:00:02]} 40. f4 {[%clk 0:00:35.7]}
40... Rh2 {[%clk 0:00:02.1]} 41. h4 {[%clk 0:00:34.7]} 41... Re2 {[%clk
0:00:02.3]} 42. Bf6 {[%clk 0:00:33.1]} 42... Rg2 {[%clk 0:00:01.9]} 43. Kf3
{[%clk 0:00:32.6]} 43... Rg1 {[%clk 0:00:01.7]} 44. d5 {[%clk 0:00:32.1]} 44...
Rd1 {[%clk 0:00:02]} 45. Bd4 {[%clk 0:00:31.6]} 1-0

[Event "*** Titled Tuesday Blitz"]
[Site "Chess.com"]
[Date "2020.12.29"]
[Round "1"]
[White "Ladislav1969"]
[Black "Dynamikus"]
[Result "0-1"]
[WhiteElo "2402"]
[BlackElo "2756"]
[TimeControl "180+1"]
[EndTime "10:07:35 PST"]
[Termination "Dynamikus won by resignation"]

1. e4 {[%clk 0:03:00.9]} 1... c5 {[%clk 0:02:57.1]} 2. d4 {[%clk 0:03:01]} 2...
cxd4 {[%clk 0:02:54.1]} 3. c3 {[%clk 0:03:01.5]} 3... Nf6 {[%clk 0:02:54.7]} 4.
e5 {[%clk 0:03:01.1]} 4... Nd5 {[%clk 0:02:55.4]} 5. Nf3 {[%clk 0:03:01.7]} 5...
Nc6 {[%clk 0:02:55.4]} 6. Bc4 {[%clk 0:02:59.4]} 6... Nb6 {[%clk 0:02:55.9]} 7.
Bb3 {[%clk 0:02:59.6]} 7... d5 {[%clk 0:02:56.5]} 8. exd6 {[%clk 0:02:59.9]}
8... Qxd6 {[%clk 0:02:56.8]} 9. O-O {[%clk 0:02:59.2]} 9... Be6 {[%clk
0:02:56.7]} 10. Bxe6 {[%clk 0:02:59.2]} 10... Qxe6 {[%clk 0:02:57.6]} 11. Nxd4
{[%clk 0:02:59.4]} 11... Nxd4 {[%clk 0:02:58.5]} 12. Qxd4 {[%clk 0:02:59.5]}
12... Rd8 {[%clk 0:02:59.2]} 13. Qh4 {[%clk 0:02:55.9]} 13... h5 {[%clk
0:02:59.9]} 14. h3 {[%clk 0:02:55.3]} 14... Qc4 {[%clk 0:02:52.7]} 15. Qxc4
{[%clk 0:02:48.9]} 15... Nxc4 {[%clk 0:02:53.6]} 16. b3 {[%clk 0:02:49.3]} 16...
Ne5 {[%clk 0:02:50.5]} 17. c4 {[%clk 0:02:46.9]} 17... g6 {[%clk 0:02:49.4]} 18.
Bb2 {[%clk 0:02:46.5]} 18... Bg7 {[%clk 0:02:50]} 19. Kh1 {[%clk 0:02:37.3]}
19... O-O {[%clk 0:02:50.3]} 20. f4 {[%clk 0:02:24.6]} 20... Nd3 {[%clk
0:02:45.1]} 21. Bxg7 {[%clk 0:02:23.9]} 21... Kxg7 {[%clk 0:02:46]} 22. Nc3
{[%clk 0:02:24]} 22... e6 {[%clk 0:02:36.7]} 23. Rad1 {[%clk 0:02:18.2]} 23...
Rd4 {[%clk 0:02:30.6]} 24. Kg1 {[%clk 0:02:03.8]} 24... Rfd8 {[%clk 0:02:27.9]}
25. Nb5 {[%clk 0:01:57.4]} 25... R4d7 {[%clk 0:02:16.3]} 26. Nxa7 {[%clk
0:01:56.3]} 26... Ra8 {[%clk 0:02:16.5]} 27. Nb5 {[%clk 0:01:34.3]} 27... Rxa2
{[%clk 0:02:17.4]} 28. Rf3 {[%clk 0:01:33.6]} 28... Nc5 {[%clk 0:02:09.3]} 29.
Rxd7 {[%clk 0:01:33.4]} 29... Nxd7 {[%clk 0:02:10.2]} 30. Nd6 {[%clk 0:01:27.8]}
30... b6 {[%clk 0:02:06]} 31. b4 {[%clk 0:01:19.1]} 31... Rb2 {[%clk 0:02:03.9]}
32. b5 {[%clk 0:01:16.5]} 32... Rc2 {[%clk 0:01:59.3]} 33. Ra3 {[%clk
0:01:07.7]} 33... Rd2 {[%clk 0:01:55.1]} 34. Nc8 {[%clk 0:01:00.7]} 34... Rd4
{[%clk 0:01:51.2]} 35. Ra7 {[%clk 0:00:59.6]} 35... Kf8 {[%clk 0:01:32.7]} 36.
Ra8 {[%clk 0:00:46.4]} 36... Kg7 {[%clk 0:01:25.3]} 37. Ra7 {[%clk 0:00:46.4]}
37... h4 {[%clk 0:01:01.9]} 38. Rc7 {[%clk 0:00:45.3]} 38... Kf8 {[%clk
0:00:53.6]} 39. c5 {[%clk 0:00:33.7]} 39... Nxc5 {[%clk 0:00:34.8]} 40. Nxb6
{[%clk 0:00:32.7]} 40... Ne4 {[%clk 0:00:33.3]} 41. Nd7+ {[%clk 0:00:17.5]}
41... Ke8 {[%clk 0:00:28.3]} 42. Nf6+ {[%clk 0:00:09.4]} 42... Nxf6 {[%clk
0:00:25.7]} 43. b6 {[%clk 0:00:09.7]} 43... Rb4 {[%clk 0:00:22]} 44. b7 {[%clk
0:00:09.3]} 44... Nd7 {[%clk 0:00:22.3]} 45. Rc8+ {[%clk 0:00:05.9]} 45... Ke7
{[%clk 0:00:22]} 46. Rc7 {[%clk 0:00:06.3]} 46... Kd6 {[%clk 0:00:22]} 0-1

[Event "*** Titled Tuesday Blitz"]
[Site "Chess.com"]
[Date "2020.12.29"]
[Round "1"]
[White "Leonid_Starozhilov"]
[Black "Jenia84"]
[Result "1-0"]
[WhiteElo "2631"]
[BlackElo "2322"]
[TimeControl "180+1"]
[EndTime "10:07:35 PST"]
[Termination "Leonid_Starozhilov won by checkmate"]

1. c4 {[%clk 0:02:58.2]} 1... Nf6 {[%clk 0:02:57.3]} 2. Nc3 {[%clk 0:02:58.2]}
2... e5 {[%clk 0:02:56.3]} 3. e4 {[%clk 0:02:57.7]} 3... Bb4 {[%clk 0:02:50.1]}
4. Nge2 {[%clk 0:02:55.7]} 4... O-O {[%clk 0:02:45.7]} 5. g3 {[%clk 0:02:56]}
5... c6 {[%clk 0:02:44.2]} 6. Bg2 {[%clk 0:02:55.6]} 6... d5 {[%clk 0:02:30.4]}
7. cxd5 {[%clk 0:02:53.1]} 7... cxd5 {[%clk 0:02:30.1]} 8. exd5 {[%clk
0:02:53.5]} 8... Nbd7 {[%clk 0:02:27.9]} 9. O-O {[%clk 0:02:51.6]} 9... Nb6
{[%clk 0:02:27.3]} 10. d4 {[%clk 0:02:52]} 10... exd4 {[%clk 0:02:22.9]} 11.
Qxd4 {[%clk 0:02:50]} 11... Bd6 {[%clk 0:02:06.4]} 12. Bg5 {[%clk 0:02:47.6]}
12... Bf5 {[%clk 0:02:05.3]} 13. Bxf6 {[%clk 0:02:35.4]} 13... Qxf6 {[%clk
0:02:04.5]} 14. Qxf6 {[%clk 0:02:35.5]} 14... gxf6 {[%clk 0:02:04.2]} 15. Nd4
{[%clk 0:02:36]} 15... Bd7 {[%clk 0:02:01.4]} 16. Rad1 {[%clk 0:02:23.5]} 16...
Rfd8 {[%clk 0:01:59.9]} 17. Ne4 {[%clk 0:02:21.4]} 17... Be5 {[%clk 0:01:55.6]}
18. f4 {[%clk 0:02:21.2]} 18... Bxd4+ {[%clk 0:01:37.5]} 19. Rxd4 {[%clk
0:02:22.1]} 19... Bb5 {[%clk 0:01:30.9]} 20. Rfd1 {[%clk 0:01:58.6]} 20... Kg7
{[%clk 0:01:28.5]} 21. Nc3 {[%clk 0:01:57.7]} 21... Bd7 {[%clk 0:01:20.6]} 22.
d6 {[%clk 0:01:57.7]} 22... Rab8 {[%clk 0:01:20.6]} 23. Re1 {[%clk 0:01:49.4]}
23... Be6 {[%clk 0:01:19.2]} 24. Red1 {[%clk 0:01:25.1]} 24... Rd7 {[%clk
0:01:12.1]} 25. Ne4 {[%clk 0:01:17.3]} 25... Bxa2 {[%clk 0:01:07.8]} 26. Nc5
{[%clk 0:01:16.9]} 26... Rdd8 {[%clk 0:01:07.6]} 27. Nxb7 {[%clk 0:01:09]} 27...
Rd7 {[%clk 0:01:05.1]} 28. Nc5 {[%clk 0:01:00.6]} 28... Rdd8 {[%clk 0:01:05.1]}
29. d7 {[%clk 0:00:43.2]} 29... Be6 {[%clk 0:01:04.6]} 30. b3 {[%clk 0:00:26.3]}
30... Kf8 {[%clk 0:01:03.3]} 31. Be4 {[%clk 0:00:22.2]} 31... f5 {[%clk
0:01:01.4]} 32. Bc6 {[%clk 0:00:10.9]} 32... Ke7 {[%clk 0:00:59.3]} 33. Re1
{[%clk 0:00:08.9]} 33... Kf6 {[%clk 0:00:42.5]} 34. Nxe6 {[%clk 0:00:06.9]}
34... fxe6 {[%clk 0:00:42.2]} 35. Rd6 {[%clk 0:00:07.6]} 35... Kf7 {[%clk
0:00:38.9]} 36. Rexe6 {[%clk 0:00:06.7]} 36... Nxd7 {[%clk 0:00:38]} 37. Rh6
{[%clk 0:00:04.4]} 37... Kg7 {[%clk 0:00:36.2]} 38. Rhe6 {[%clk 0:00:03.4]}
38... Nf8 {[%clk 0:00:33.9]} 39. Re7+ {[%clk 0:00:03.5]} 39... Kh8 {[%clk
0:00:33.8]} 40. Rxd8 {[%clk 0:00:03.3]} 40... Rxd8 {[%clk 0:00:34.1]} 41. Rxa7
{[%clk 0:00:03.1]} 41... Rd1+ {[%clk 0:00:33.5]} 42. Kg2 {[%clk 0:00:03.6]}
42... Rd2+ {[%clk 0:00:33.2]} 43. Kh3 {[%clk 0:00:04.1]} 43... Rb2 {[%clk
0:00:32.9]} 44. Rb7 {[%clk 0:00:04]} 44... Ne6 {[%clk 0:00:30.8]} 45. Bd5 {[%clk
0:00:03.4]} 45... Nd4 {[%clk 0:00:28.4]} 46. Rf7 {[%clk 0:00:03.4]} 46... Ne2
{[%clk 0:00:27.7]} 47. Rxf5 {[%clk 0:00:03]} 47... Ng1+ {[%clk 0:00:27.5]} 48.
Kg4 {[%clk 0:00:03.5]} 48... Rxh2 {[%clk 0:00:27.5]} 49. Rg5 {[%clk 0:00:03.9]}
49... Ne2 {[%clk 0:00:26]} 50. Rg8# {[%clk 0:00:04]} 1-0

[Event "*** Titled Tuesday Blitz"]
[Site "Chess.com"]
[Date "2020.12.29"]
[Round "1"]
[White "supertfc"]
[Black "frederiksvane"]
[Result "0-1"]
[WhiteElo "2396"]
[BlackElo "2741"]
[TimeControl "180+1"]
[EndTime "10:07:37 PST"]
[Termination "frederiksvane won on time"]

1. c4 {[%clk 0:03:00.5]} 1... Nf6 {[%clk 0:02:34.9]} 2. g3 {[%clk 0:02:59.5]}
2... g6 {[%clk 0:02:34.5]} 3. Bg2 {[%clk 0:02:59.7]} 3... Bg7 {[%clk 0:02:34.7]}
4. Nc3 {[%clk 0:02:58.9]} 4... O-O {[%clk 0:02:35.3]} 5. Nf3 {[%clk 0:02:59.4]}
5... c5 {[%clk 0:02:35.5]} 6. O-O {[%clk 0:02:54.8]} 6... Nc6 {[%clk 0:02:33.9]}
7. a3 {[%clk 0:02:54]} 7... d5 {[%clk 0:02:32.3]} 8. cxd5 {[%clk 0:02:46.2]}
8... Nxd5 {[%clk 0:02:33.2]} 9. Qa4 {[%clk 0:02:27.3]} 9... Nb6 {[%clk 0:02:21]}
10. Qh4 {[%clk 0:02:20.7]} 10... c4 {[%clk 0:02:19.8]} 11. Rd1 {[%clk
0:02:12.4]} 11... Bf5 {[%clk 0:02:18.9]} 12. d3 {[%clk 0:02:05.1]} 12... cxd3
{[%clk 0:02:16]} 13. e4 {[%clk 0:02:05.3]} 13... Bc8 {[%clk 0:01:51.8]} 14. Bh6
{[%clk 0:01:57.8]} 14... e5 {[%clk 0:01:31]} 15. Bxg7 {[%clk 0:01:13.8]} 15...
Kxg7 {[%clk 0:01:31.9]} 16. Qxd8 {[%clk 0:01:05.1]} 16... Rxd8 {[%clk
0:01:25.2]} 17. Ne1 {[%clk 0:01:03.7]} 17... d2 {[%clk 0:01:17.4]} 18. Nf3
{[%clk 0:00:59.5]} 18... Bg4 {[%clk 0:01:12.5]} 19. Rxd2 {[%clk 0:00:56.8]}
19... Bxf3 {[%clk 0:01:12.7]} 20. Rxd8 {[%clk 0:00:56.9]} 20... Rxd8 {[%clk
0:01:13.6]} 21. Bxf3 {[%clk 0:00:57.6]} 21... Rd2 {[%clk 0:01:14.2]} 22. Rb1
{[%clk 0:00:37.9]} 22... Nc4 {[%clk 0:01:11.6]} 23. Be2 {[%clk 0:00:24.4]} 23...
Nxb2 {[%clk 0:01:04]} 24. Kf1 {[%clk 0:00:24.1]} 24... Nd4 {[%clk 0:00:59.2]}
25. Ke1 {[%clk 0:00:16.8]} 25... Rc2 {[%clk 0:00:59.6]} 26. Bd1 {[%clk
0:00:08.8]} 26... Rxc3 {[%clk 0:00:46.5]} 27. Rxb2 {[%clk 0:00:08.5]} 27... b6
{[%clk 0:00:45.4]} 28. a4 {[%clk 0:00:08.2]} 28... Ra3 {[%clk 0:00:38.2]} 29.
Rb4 {[%clk 0:00:05.6]} 29... f5 {[%clk 0:00:35.7]} 30. Rc4 {[%clk 0:00:04.3]}
30... Ne6 {[%clk 0:00:29.7]} 31. Rc6 {[%clk 0:00:03.9]} 31... Kf6 {[%clk
0:00:29.7]} 32. Rd6 {[%clk 0:00:02.5]} 32... Ke7 {[%clk 0:00:29.3]} 33. Rd5
{[%clk 0:00:02.9]} 33... Kf6 {[%clk 0:00:25.6]} 34. Rd7 {[%clk 0:00:03.1]} 34...
Nc5 {[%clk 0:00:10.4]} 35. Rxa7 {[%clk 0:00:02.8]} 35... Nxe4 {[%clk 0:00:10.4]}
36. Rxh7 {[%clk 0:00:01.7]} 36... Nc3 {[%clk 0:00:10.8]} 37. Rd7 {[%clk
0:00:02]} 37... Ke6 {[%clk 0:00:04.6]} 38. Rd3 {[%clk 0:00:01.5]} 38... Nb1
{[%clk 0:00:03.7]} 0-1